bitfinex-derivatives/quotes_ETHF0:USTF0_20251005
["timestamp","ask_amount","ask_price","bid_price","bid_amount"]
[1759665036173,1.13207,4558.7,4558.6,0.93087]
[1759665036375,0.7373,4558.7,4558.0,1.11826]
[1759665036677,3.6353,4558.4,4558.3,0.9309]
[1759665037175,3.9451,4558.4,4558.3,0.9309]
[1759665037372,3.9451,4558.4,4558.3,0.6019]
[1759665037674,0.5285,4558.0,4557.9,1.13543]
[1759665037878,0.2187,4558.0,4557.9,1.13543]
[1759665038279,0.5285,4558.2,4558.1,0.80642]
[1759665038577,0.5285,4558.2,4558.1,1.13542]
[1759665039275,0.7373,4558.2,4558.1,1.13542]
[1759665040473,3.9451,4558.2,4558.1,1.13542]
[1759665041674,4.33991,4558.2,4558.1,0.93092]
[1759665041981,4.33991,4558.2,4558.1,0.39482]
[1759665042179,3.9451,4558.2,4558.1,0.39482]
[1759665042480,3.9451,4558.2,4558.1,0.93092]
[1759665042873,4.33991,4558.2,4558.1,0.93092]
[1759665043976,4.33991,4558.2,4558.1,0.39482]
[1759665044182,3.9451,4558.2,4558.1,0.39482]
[1759665044481,3.9451,4558.2,4558.1,0.93092]
[1759665044775,4.33991,4558.2,4558.1,0.93092]
[1759665044982,0.7373,4557.9,4557.8,0.5381782]
[1759665046183,0.7373,4557.9,4557.8,0.9330182]
[1759665046880,0.7373,4557.9,4557.8,1.1375182]
[1759665049887,1.13213,4557.9,4557.8,1.1375182]
[1759665052690,4.33993,4557.9,4557.8,1.1375182]
[1759665053993,4.33993,4557.9,4557.8,0.7426782]
[1759665054487,4.33993,4557.9,4557.8,0.5381782]
[1759665054690,4.33993,4557.9,4557.8,0.0020782]
[1759665056182,4.33993,4557.9,4557.8,0.2251782]
[1759665056383,4.33993,4557.9,4557.8,0.5538782]
[1759665056586,4.33993,4557.9,4557.8,0.0020782]
[1759665058097,0.7595,4557.2,4557.1,0.4364]
[1759665058393,0.2177,4557.2,4557.1,0.8313]
[1759665058790,0.5554,4557.2,4557.1,1.16]
[1759665059190,0.5554,4557.2,4557.1,1.16206368]
[1759665063799,3.2078,4557.4,4557.3,0.39489]
[1759665063994,3.4255,4557.4,4557.3,1.15999]
[1759665064192,4.36213,4558.0,4557.9,1.15993]
[1759665064595,6.79133469,4558.0,4557.9,1.15993]
[1759665064797,7.18616469,4558.0,4557.9,0.7651]
[1759665065091,6.64436469,4558.0,4557.9,0.7651]
[1759665065301,6.98206469,4558.0,4557.9,0.7651]
[1759665065696,7.18616469,4558.0,4557.9,0.7651]
[1759665069800,7.18616469,4558.0,4557.9,1.15993]
[1759665070501,1.15435,4557.7,4557.6,0.5518]
[1759665070705,1.15436,4557.6,4557.5,0.39487]
[1759665071199,1.15436,4557.6,4557.5,0.94667]
[1759665071405,0.7595,4557.6,4557.5,0.94667]
[1759665071897,0.7595,4557.6,4557.5,0.39487]
[1759665072300,0.7595,4557.6,4557.5,0.72357]
[1759665072500,0.7595,4557.6,4557.5,0.94667]
[1759665074003,0.7595,4557.6,4557.5,0.61797]
[1759665074204,0.7595,4557.6,4557.5,0.39487]
[1759665074399,0.3377,4557.6,4557.2,0.2231]
[1759665074605,0.7595,4557.3,4557.2,0.9467]
[1759665075702,0.7595,4557.3,4557.2,1.16]
[1759665080409,3.2078,4557.4,4557.3,1.15479]
[1759665080707,3.4224,4557.4,4557.3,1.15479]
[1759665080897,3.9505,4557.4,4557.3,1.15479]
[1759665081099,3.9505,4557.4,4557.3,0.39489]
[1759665081311,3.9505,4557.4,4557.3,0.93239]
[1759665081703,4.34538,4557.4,4557.3,0.93239]
[1759665082608,4.34538,4557.4,4557.3,0.61309]
[1759665082809,4.34538,4557.4,4557.3,0.93239]
[1759665083208,3.9505,4557.4,4557.3,0.93239]
[1759665083901,4.34538,4557.4,4557.3,0.93239]
[1759665084613,3.9505,4557.4,4557.3,0.93239]
[1759665087010,0.7427,4557.4,4557.3,1.15479]
[1759665088108,0.4223,4557.4,4557.3,1.15479]
[1759665088309,0.2146,4557.4,4557.3,1.15479]
[1759665088510,0.535,4557.4,4557.3,1.15479]
[1759665088811,0.7427,4557.4,4557.3,1.15479]
[1759665090709,3.6301,4557.9,4557.8,1.15474]
[1759665091115,6.50497921,4557.9,4557.8,1.15474]
[1759665091316,6.82537921,4557.9,4557.8,1.15474]
[1759665092816,3.2078,4558.4,4558.3,0.3948]
[1759665093011,2.89176,4558.4,4558.3,1.1444]
[1759665094712,3.21436,4558.4,4558.3,1.1444]
[1759665095016,0.5374,4558.4,4558.3,1.1444]
[1759665095518,3.7403,4558.9,4558.8,1.14436]
[1759665095718,3.9551,4558.9,4558.8,1.14436]
[1759665095911,6.76239098,4558.9,4558.8,1.14436]
[1759665096716,6.76239098,4558.9,4558.8,0.7496]
[1759665097618,6.76239098,4558.9,4558.8,0.5344]
[1759665098323,0.4247,4558.6,4558.5,0.92918]
[1759665098516,0.7473,4558.6,4558.5,0.92918]
[1759665098711,0.1282,4558.5,4558.4,0.39479]
[1759665098917,0.8755,4558.5,4558.4,0.39479]
[1759665099614,0.3226,4558.4,4558.2,0.5473]
[1759665099818,0.7473,4558.3,4558.2,1.14921]
[1759665100121,0.7473,4557.8,4557.7,0.7496]
[1759665100319,0.7473,4557.8,4557.7,0.9696]
[1759665100520,0.7473,4557.8,4557.7,1.36445]
[1759665102721,3.6325,4558.4,4558.3,1.1444]
[1759665102922,3.9551,4558.4,4558.3,1.3644]
[1759665103118,3.9551,4558.4,4558.3,1.1444]
[1759665103323,6.79782613,4558.4,4558.2,0.39481]
[1759665104424,6.79782613,4558.4,4558.2,0.72211]
[1759665104925,0.7473,4558.3,4558.2,0.72211]
[1759665106723,0.7473,4558.3,4558.2,0.92921]
[1759665106927,0.7473,4558.3,4558.2,0.60191]
[1759665107523,0.7473,4558.3,4558.2,0.39481]
[1759665107826,0.7473,4558.3,4558.2,1.13441]
[1759665108523,1.1421,4558.3,4558.2,0.39481]
[1759665109118,0.7473,4558.3,4557.8,0.5401]
[1759665109325,0.7662,4557.9,4557.8,1.14494]
[1759665109630,0.2157,4557.9,4557.8,1.35444]
[1759665109918,0.2157,4557.9,4557.8,1.13444]
[1759665111227,3.4278,4558.4,4558.3,0.2095]
[1759665111421,3.8572,4558.4,4558.3,1.1344]
[1759665111618,7.13820191,4558.4,4558.3,0.3948]
[1759665111821,7.47500191,4558.4,4558.3,0.3948]
[1759665112522,7.08021191,4558.4,4558.3,1.1344]
[1759665113029,6.86021191,4558.4,4558.3,1.1344]
[1759665114029,3.4235,4558.4,4558.3,1.1344]
[1759665114424,3.7603,4558.4,4558.3,1.1344]
[1759665114624,3.4235,4558.4,4558.3,1.1344]
[1759665116520,3.2078,4558.4,4558.3,1.1344]
[1759665116719,0.94727,4558.7,4558.6,0.7396]
[1759665116924,1.16097,4558.7,4558.6,0.7396]
[1759665119728,0.7662,4558.7,4558.6,0.7396]
[1759665120431,3.5446,4558.9,4558.7,0.71487]
[1759665120635,3.7603,4558.9,4558.8,0.7396]
[1759665121329,3.7603,4558.9,4558.7,0.39477]
[1759665121330,0.7662,4559.2,4559.1,0.81423]
[1759665121532,0.7662,4559.2,4559.1,1.13433]
[1759665122531,0.7662,4559.2,4559.1,0.7396]
[1759665124339,0.21829123,4559.4,4559.3,0.7396]
[1759665124743,0.00259123,4559.4,4559.3,0.7396]
[1759665125047,1.16350123,4559.4,4559.0,0.5401]
[1759665125243,0.3368,4559.3,4559.2,0.60472]
[1759665125545,0.7662,4559.3,4559.2,1.13432]
[1759665129341,0.3368,4559.2,4558.6,0.3201]
[1759665129547,0.7662,4559.2,4559.1,0.5301]
[1759665130447,0.7662,4559.2,4559.1,0.7396]
[1759665131945,0.7662,4559.2,4559.1,0.5301]
[1759665132146,0.7662,4559.2,4559.1,0.7396]
[1759665132842,0.00259123,4559.4,4559.3,0.7396]
[1759665133041,0.76879123,4559.4,4559.3,0.7396]
[1759665133241,0.76879123,4559.4,4559.3,0.5301]
[1759665134547,0.76879123,4559.4,4559.3,0.21]
[1759665134743,0.76879123,4559.4,4559.2,0.39472]
[1759665135043,0.5525,4559.3,4559.2,0.92482]
[1759665135250,0.82412,4559.2,4559.1,0.39473]
[1759665135549,1.16092,4559.2,4559.1,0.39473]
[1759665137344,0.39474,4559.0,4558.9,0.39474]
[1759665137548,0.39474,4559.0,4558.7,0.93777]
[1759665137549,0.7581,4558.8,4558.7,0.93777]
[1759665137944,0.7581,4558.8,4558.7,1.14677]
[1759665140448,0.2249,4558.8,4558.7,1.14677]
[1759665141451,0.7581,4558.8,4558.7,1.14677]
[1759665144850,0.39474,4559.0,4558.6,0.39477]
[1759665144851,0.92797,4558.7,4558.6,0.39477]
[1759665145054,0.2249,4558.4,4558.3,0.7246]
[1759665145260,0.7581,4558.4,4558.3,0.7246]
[1759665145756,3.95082547,4558.4,4558.1,0.3298]
[1759665145970,1.15291,4558.2,4558.0,0.39482]
[1759665146351,1.15291,4558.2,4558.0,0.72462]
[1759665146548,0.32,4558.1,4558.0,0.72462]
[1759665146764,0.7581,4558.1,4558.0,0.94752]
[1759665146959,0.7581,4558.1,4558.0,1.15652]
[1759665148568,1.15292,4558.1,4558.0,1.15652]
[1759665148864,0.7581,4558.1,4558.0,1.15652]
[1759665149664,1.15292,4558.1,4558.0,1.15653]
[1759665149864,1.15292,4558.1,4558.0,0.94753]
[1759665150065,0.7581,4557.7,4557.6,0.7727]
[1759665150259,0.7581,4557.7,4557.6,0.9817]
[1759665150657,0.7581,4557.7,4557.6,1.37656]
[1759665152468,0.7581,4557.7,4557.6,1.15656]
[1759665156264,0.7581,4557.7,4557.6,0.5388]
[1759665156467,0.8508,4557.5,4557.4,0.5263]
[1759665156662,0.7271,4557.2,4557.1,0.52836368]
[1759665157263,0.7271,4557.2,4557.1,0.00206368]
[1759665157469,3.52400821,4557.2,4557.1,0.00206368]
[1759665159466,8.52400821,4557.2,4557.1,0.00206368]
[1759665160367,0.7271,4556.4,4556.3,1.14477]
[1759665160569,0.7271,4556.4,4556.3,0.7498]
[1759665161473,0.7271,4556.4,4556.3,0.7522545]
[1759665161868,3.58257682,4556.4,4556.3,0.0024545]
[1759665162161,3.80257682,4556.4,4556.3,0.0024545]
[1759665164768,3.80257682,4556.4,4556.3,0.3167545]
[1759665164971,3.80257682,4556.4,4556.3,0.5287545]
[1759665167875,3.2078,4556.5,4556.4,0.319]
[1759665168074,3.2078,4556.5,4556.4,0.7414]
[1759665169271,3.2078,4556.5,4556.4,5.7414]
[1759665169471,3.4131,4556.5,4556.4,0.7414]
[1759665170672,3.7356,4556.5,4556.4,0.7414]
[1759665173081,0.5262,4556.5,4556.4,0.7414]
[1759665174879,0.7452,4556.5,4556.4,0.7414]
[1759665176283,3.77747059,4556.5,4556.4,0.5254]
[1759665176781,3.77747059,4556.5,4556.4,0.7414]
[1759665177278,3.64707059,4556.5,4556.4,0.7414]
[1759665179283,0.2037,4556.5,4556.4,0.7414]
[1759665180287,0.2037,4556.5,4556.4,1.13636]
[1759665180486,0.5262,4556.5,4556.4,1.13636]
[1759665181187,0.7452,4556.5,4556.4,1.13636]
[1759665181583,0.8756,4556.5,4556.4,0.319]
[1759665181783,1.27056,4556.5,4556.3,0.0024545]
[1759665181984,0.3225,4556.8,4556.7,0.39494]
[1759665182288,0.3225,4556.8,4556.7,1.13634]
[1759665182289,0.7468,4556.8,4556.7,1.13634]
[1759665182686,1.14173,4556.8,4556.7,1.13634]
[1759665183579,1.14173,4556.8,4556.7,0.5254]
[1759665183782,1.14174,4556.7,4556.6,0.71394]
[1759665184084,0.4243,4556.4,4556.3,0.9228245]
[1759665184284,0.7468,4556.4,4556.3,0.9228245]
[1759665187989,0.7468,4556.4,4556.3,0.3974245]
[1759665188287,0.7468,4556.4,4556.3,0.7164245]
[1759665188489,0.7468,4556.4,4556.3,0.9228245]
[1759665188688,0.7468,4556.4,4556.3,1.1388245]
[1759665189189,0.2053,4556.4,4556.3,1.1388245]
[1759665189390,0.2053,4556.7,4556.6,1.13635]
[1759665190293,0.5278,4556.7,4556.6,1.13635]
[1759665191587,3.2078,4557.0,4556.9,0.39492]
[1759665191789,3.2078,4557.5,4557.4,0.39488]
[1759665191987,3.2078,4557.5,4557.4,1.13628]
[1759665192191,0.2053,4557.7,4557.6,0.81725]
[1759665192388,0.5278,4557.7,4557.6,1.13625]
[1759665192587,3.39723765,4557.7,4557.6,1.13625]
[1759665192786,3.61623765,4557.7,4557.6,0.7414]
[1759665195395,3.61623765,4557.7,4557.6,0.5254]
[1759665196593,0.7468,4557.3,4557.2,0.5254]
[1759665196797,1.14169,4557.3,4557.2,0.5254]
[1759665197199,0.7468,4557.3,4557.2,0.5254]
[1759665198790,0.7468,4557.3,4557.2,0.6013]
[1759665199595,0.7468,4557.3,4557.2,0.9399]
[1759665199902,0.7662,4557.1,4557.0,0.94371]
[1759665200701,0.7662,4557.1,4557.0,1.15771]
[1759665201307,0.7662,4557.1,4557.0,0.5488]
[1759665202406,0.7662,4557.1,4557.0,0.7628]
[1759665204007,0.7662,4557.1,4557.0,0.5488]
[1759665204611,0.7662,4557.1,4557.0,0.94371]
[1759665209814,0.7662,4557.1,4557.0,1.15771]
[1759665210311,4.3689,4557.1,4557.0,0.5488]
[1759665211112,4.3689,4557.1,4557.0,0.94371]
[1759665211306,7.18423177,4557.1,4557.0,0.94371]
[1759665211912,7.18423177,4557.1,4557.0,0.39491]
[1759665212215,7.18423177,4557.1,4557.0,0.72231]
[1759665212515,7.18423177,4557.1,4557.0,0.39491]
[1759665212718,7.18423177,4557.1,4557.0,0.5322]
[1759665213016,1.26581,4557.0,4556.9,0.39492]
[1759665213210,1.26581,4557.0,4556.9,0.72232]
[1759665213411,4.10352497,4557.0,4556.9,0.72232]
[1759665213807,3.58181497,4557.0,4556.9,0.80422]
[1759665214014,3.27011497,4557.0,4556.9,1.13162]
[1759665214212,3.58181497,4557.0,4556.9,1.13162]
[1759665223324,2.83771497,4557.0,4556.9,1.13162]
[1759665223527,3.37091497,4557.0,4556.9,1.13162]
[1759665223729,3.58181497,4557.0,4556.9,1.13162]
[1759665235838,3.71561497,4557.0,4556.9,1.13162]
[1759665238638,3.58181497,4557.0,4556.9,1.13162]
[1759665240043,3.2078,4557.1,4557.0,0.52311]
[1759665240241,3.2078,4557.1,4557.0,1.27781]
[1759665240643,0.3107,4557.3,4557.2,1.1496]
[1759665240644,0.536,4557.3,4557.2,1.1496]
[1759665240843,0.536,4557.6,4557.5,1.27777]
[1759665241046,0.2253,4557.6,4557.5,1.27777]
[1759665241251,2.83106469,4557.7,4557.6,0.83276]
[1759665241444,0.39485,4557.7,4557.6,1.14956]
[1759665241644,0.93085,4557.7,4557.6,1.14956]
[1759665243052,1.13995,4557.7,4557.6,1.14956]
[1759665247150,3.5185,4557.8,4557.7,0.71165]
[1759665247454,3.9529,4557.8,4557.7,1.14955]
[1759665248758,4.34774,4557.8,4557.7,1.14955]
[1759665249255,3.9529,4557.8,4557.7,1.14955]
[1759665250956,3.4331,4557.8,4557.7,1.14955]
[1759665251355,3.9529,4557.8,4557.7,1.14955]
[1759665251658,3.9529,4557.8,4557.7,0.92835]
[1759665252351,0.7451,4557.8,4557.7,1.14955]
[1759665256154,0.7451,4557.8,4557.7,0.39485]
[1759665256859,0.7451,4557.8,4557.7,0.71165]
[1759665257258,0.7451,4557.8,4557.7,0.94215]
[1759665258062,0.7451,4557.8,4557.7,0.39485]
[1759665259763,0.7451,4557.8,4557.7,0.94215]
[1759665261762,0.7451,4557.8,4557.7,1.16365]
[1759665266167,0.4344,4557.8,4557.7,1.16365]
[1759665266361,0.2253,4557.8,4557.7,1.16365]
[1759665266960,0.5637,4557.8,4557.7,1.16365]
[1759665267159,0.7731,4557.8,4557.7,1.16365]
[1759665269863,1.16794,4557.8,4557.7,1.16365]
[1759665272871,1.16794,4557.8,4557.7,0.7688]
[1759665273260,1.16794,4557.8,4557.7,1.16365]
[1759665275170,1.16794,4557.8,4557.7,0.7688]
[1759665275565,1.16794,4557.8,4557.7,1.16365]
[1759665275966,1.16794,4557.8,4557.7,0.7688]
[1759665276273,0.82267,4557.6,4557.5,0.3138]
[1759665276470,1.13907,4557.6,4557.5,0.3138]
[1759665276672,1.13907,4557.6,4557.5,0.5349]
[1759665277671,1.13907,4557.6,4557.5,0.7401]
[1759665281971,1.13907,4557.6,4557.5,1.13497]
[1759665282667,1.13907,4557.6,4557.5,1.26477]
[1759665285675,1.13907,4557.6,4557.5,1.13497]
[1759665286180,1.13907,4557.6,4557.5,0.7401]
[1759665286372,1.13907,4557.6,4557.5,1.13497]
[1759665287979,1.13907,4557.6,4557.5,0.7401]
[1759665288279,1.13907,4557.6,4557.5,1.13497]
[1759665291682,1.13907,4557.6,4557.1,0.22]
[1759665291683,0.82248,4557.4,4557.3,0.91488]
[1759665291980,1.14088,4557.4,4557.3,1.12578]
[1759665292691,1.14088,4557.4,4557.3,0.70758]
[1759665292981,1.14088,4557.4,4557.3,0.91488]
[1759665295183,1.14088,4557.4,4557.3,1.12578]
[1759665296385,1.14088,4557.4,4557.3,0.70758]
[1759665297086,1.14088,4557.4,4557.3,0.91488]
[1759665297985,0.746,4557.4,4557.3,0.91488]
[1759665298279,0.746,4557.4,4557.0,1.11588]
[1759665298280,0.746,4557.4,4557.0,0.1286]
[1759665298484,0.746,4557.4,4555.9,1.57421955]
[1759665298485,0.39503,4555.6,4555.5,1.57421955]
[1759665298689,0.39507,4555.2,4555.1,0.4182]
[1759665298877,0.39507,4555.2,4555.0,0.1281]
[1759665298878,0.61507,4555.2,4555.0,0.1281]
[1759665299184,0.39512,4554.6,4554.5,0.4408]
[1759665299379,3.4278,4554.6,4554.5,0.6481]
[1759665299577,6.77976648,4554.6,4554.5,0.86145503]
[1759665300186,6.55976648,4554.6,4554.5,0.86145503]
[1759665300389,6.77976648,4554.6,4554.5,0.86145503]
[1759665300583,6.77976648,4554.6,4554.5,0.65055503]
[1759665300887,8.57731704,4554.6,4554.5,0.65055503]
[1759665301086,8.57731704,4554.6,4554.5,0.86145503]
[1759665302293,0.48303745,4554.6,4554.5,0.86145503]
[1759665303592,0.0022053,4554.6,4554.5,0.86145503]
[1759665305388,0.0022053,4554.6,4554.5,5.86145503]
[1759665308593,3.2078,4555.1,4555.0,0.94139]
[1759665308787,3.2078,4555.1,4555.0,1.25409]
[1759665309594,3.20981346,4555.1,4555.0,1.25409]
[1759665312799,3.20981346,4555.1,4555.0,0.859]
[1759665314895,3.60489346,4555.1,4555.0,1.25409]
[1759665315497,3.60489346,4555.1,4555.0,0.859]
[1759665316802,3.60489346,4555.1,4555.0,1.25409]
[1759665317598,3.60489346,4555.1,4555.0,0.859]
[1759665317790,3.60489346,4555.1,4555.0,0.6481]
[1759665317985,3.60489346,4555.1,4555.0,0.4408]
[1759665319497,12.16397179,4555.1,4555.0,0.4408]
[1759665319686,12.16397179,4555.1,4555.0,0.6451]
[1759665320792,11.94397179,4555.1,4555.0,0.6451]
[1759665320990,12.16397179,4555.1,4555.0,0.8538]
[1759665321893,12.16397179,4555.1,4554.5,0.35055503]
[1759665321894,0.39512,4554.6,4554.5,0.13055503]
[1759665322094,3.82292,4554.6,4554.5,0.13055503]
[1759665322299,7.15880008,4554.6,4554.5,0.13055503]
[1759665322601,7.15880008,4554.6,4554.5,0.33485503]
[1759665323894,7.15880008,4554.6,4554.5,0.45695503]
[1759665324496,7.15880008,4554.6,4554.5,0.66125503]
[1759665325593,7.15880008,4554.6,4554.5,0.86995503]
[1759665326303,1.11628282,4554.6,4554.5,0.86995503]
[1759665328005,0.89628282,4554.6,4554.5,0.86995503]
[1759665328203,0.50116282,4554.6,4554.5,1.26508503]
[1759665328409,0.39509,4555.0,4554.9,0.7394]
[1759665328610,0.89766243,4555.0,4554.9,0.7394]
[1759665329699,0.89281255,4555.0,4554.9,0.7394]
[1759665333608,0.89281255,4555.0,4554.9,1.1345]
[1759665334706,0.49772255,4555.0,4554.9,1.1345]
[1759665339003,4.78638985,4556.4,4555.8,0.4204]
[1759665339202,3.60277,4556.4,4556.3,1.14947]
[1759665339411,3.2078,4556.4,4556.3,1.14947]
[1759665340010,3.20995151,4556.4,4556.3,1.14947]
[1759665342509,6.05103923,4556.4,4556.3,0.3341]
[1759665345414,6.27103923,4556.4,4556.3,0.3341]
[1759665347514,6.05103923,4556.4,4556.3,0.7464]
[1759665347714,6.27103923,4556.4,4556.3,0.7464]
[1759665349514,6.27103923,4556.4,4556.3,0.3341]
[1759665351016,6.75267468,4556.4,4556.3,0.3341]
[1759665354318,8.33126453,4556.4,4556.3,0.3341]
[1759665356428,6.75267468,4556.4,4556.3,0.3341]
[1759665357427,7.14764468,4556.4,4556.3,0.3341]
[1759665358927,6.53267468,4556.4,4556.3,0.555]
[1759665359124,7.14764468,4556.4,4556.3,0.7603]
[1759665359326,7.14764468,4556.4,4556.3,0.555]
[1759665359725,7.14764468,4556.4,4556.3,0.3341]
[1759665360530,7.14864468,4556.4,4556.3,0.7603]
[1759665361426,7.14864468,4556.4,4556.3,0.3341]
[1759665361627,7.14864468,4556.4,4556.3,0.7603]
[1759665364633,7.14864468,4556.4,4556.3,0.3341]
[1759665365224,8.7253021,4556.4,4556.3,0.3341]
[1759665368624,7.14864468,4556.4,4556.3,0.3341]
[1759665368829,8.72721086,4556.4,4556.3,0.3341]
[1759665369432,8.72621086,4556.4,4556.3,0.3341]
[1759665369634,7.14764468,4556.4,4556.3,0.3341]
[1759665370637,7.14764468,4556.4,4556.3,0.555]
[1759665370832,8.72621565,4556.4,4556.3,0.555]
[1759665372633,7.14764468,4556.4,4556.3,0.3341]
[1759665373735,6.75267468,4556.4,4556.3,0.7603]
[1759665376839,6.53267468,4556.4,4556.3,0.7603]
[1759665377034,6.75267468,4556.4,4556.3,0.7603]
[1759665379039,6.75267468,4556.4,4556.3,1.15527]
[1759665381740,7.14764468,4556.4,4556.3,1.15527]
[1759665381941,7.14764468,4556.4,4556.3,0.3341]
[1759665385144,6.92764468,4556.4,4556.3,0.3341]
[1759665385343,7.14764468,4556.4,4556.3,0.3341]
[1759665385645,6.75267468,4556.4,4556.3,0.72907]
[1759665386144,6.75267468,4556.4,4556.3,0.94207]
[1759665386344,6.53267468,4556.4,4556.3,1.14657]
[1759665386546,6.75267468,4556.4,4556.3,1.14657]
[1759665388045,6.75267468,4556.4,4556.3,0.94207]
[1759665389644,8.33154375,4556.4,4556.3,0.94207]
[1759665390236,8.11154375,4556.4,4556.3,0.94207]
[1759665390434,8.33154375,4556.4,4556.3,0.94207]
[1759665390741,8.72650375,4556.4,4556.3,0.5471]
[1759665390940,8.50650375,4556.4,4556.3,0.5471]
[1759665391142,7.14763468,4556.4,4556.3,0.5471]
[1759665391342,6.92763468,4556.4,4556.3,0.5471]
[1759665391943,7.14763468,4556.4,4556.3,0.5471]
[1759665392850,6.75267468,4556.4,4556.3,1.14657]
[1759665395143,6.53267468,4556.4,4556.3,1.14657]
[1759665395339,3.91158696,4556.4,4556.3,1.14657]
[1759665404355,3.69158696,4556.4,4556.3,1.14657]
[1759665404558,3.91158696,4556.4,4556.3,1.14657]
[1759665404754,3.69158696,4556.4,4556.3,1.14657]
[1759665405057,3.91158696,4556.4,4556.3,1.14657]
[1759665405257,3.69158696,4556.4,4556.3,1.14657]
[1759665405458,3.91158696,4556.4,4556.3,1.14657]
[1759665406258,3.69158696,4556.4,4556.3,1.14657]
[1759665407359,4.08654696,4556.4,4556.3,1.14657]
[1759665408256,3.69158696,4556.4,4556.3,1.14657]
[1759665413265,4.08654696,4556.4,4556.3,1.14657]
[1759665413467,3.69158696,4556.4,4556.3,1.14657]
[1759665414963,0.48378696,4556.4,4556.3,1.14657]
[1759665416166,0.48378696,4556.4,4556.3,1.36657]
[1759665417062,0.48378696,4556.4,4556.3,6.36657]
[1759665417269,0.48378696,4556.4,4556.3,1.36657]
[1759665417671,1.57886907,4557.3,4557.0,0.1338]
[1759665417970,0.39489,4557.3,4557.2,1.16399]
[1759665418167,3.2078,4557.4,4557.3,0.39489]
[1759665418460,6.06947087,4557.4,4557.3,1.16399]
[1759665418660,6.46693304,4557.4,4557.3,1.16399]
[1759665419367,6.07205304,4557.4,4557.3,1.16399]
[1759665420567,6.07205304,4557.4,4557.3,0.7691]
[1759665421265,6.07205304,4557.4,4557.3,0.3255]
[1759665421466,6.29205304,4557.4,4557.3,0.3255]
[1759665423365,7.27926304,4557.4,4557.1,0.3255]
[1759665423666,0.3949,4557.1,4557.0,0.4593]
[1759665423867,0.6149,4557.1,4557.0,0.4593]
[1759665424066,3.51491263,4557.1,4557.0,0.4593]
[1759665424364,0.39499,4556.1,4555.1,3.2078]
[1759665424567,0.39499,4556.1,4555.6,0.39503]
[1759665424568,3.82279,4556.1,4555.6,0.39503]
[1759665424772,6.72280263,4556.1,4556.0,0.4589]
[1759665428365,11.72280263,4556.1,4556.0,0.4589]
[1759665428972,13.30058403,4556.1,4556.0,0.1334]
[1759665429673,13.77266366,4556.1,4556.0,0.1334]
[1759665431075,14.36516366,4556.1,4555.4,0.3255]
[1759665431377,3.60283,4555.6,4555.5,0.37230801]
[1759665431571,3.60283,4555.6,4555.5,0.04680801]
[1759665431572,4.29490963,4555.6,4555.5,0.04680801]
[1759665431779,7.14253213,4555.6,4555.5,0.04680801]
[1759665433777,7.14253213,4555.6,4555.5,0.37230801]
[1759665434373,7.14253213,4555.6,4555.1,0.3255]
[1759665434374,0.39507,4555.2,4555.1,0.3255]
[1759665434579,0.61507,4555.2,4555.1,0.3255]
[1759665434780,3.89810388,4555.2,4555.1,0.3255]
[1759665435479,3.89810388,4555.2,4555.1,0.5441]
[1759665435680,3.67810388,4555.2,4555.1,0.7691]
[1759665435879,3.89810388,4555.2,4555.1,0.7691]
[1759665436273,3.50303388,4555.2,4555.1,0.7691]
[1759665436674,3.28303388,4555.2,4555.1,0.7691]
[1759665436875,3.50303388,4555.2,4555.1,0.7691]
[1759665437577,3.28303388,4555.2,4555.1,0.7691]
[1759665438278,0.47207963,4555.2,4555.1,0.7691]
[1759665438478,0.69207963,4555.2,4555.1,0.7691]
[1759665438880,0.47207963,4555.2,4555.1,0.7691]
[1759665440378,0.47207963,4555.2,4555.1,5.7691]
[1759665441182,3.2078,4555.6,4555.5,1.27344]
[1759665441375,0.47074243,4555.6,4555.5,1.27344]
[1759665441584,3.2078,4556.2,4556.1,1.15089]
[1759665444187,0.39496,4556.5,4556.4,0.39497]
[1759665444384,0.61596,4556.5,4556.4,0.81987]
[1759665444590,0.61596,4556.5,4556.4,1.15087]
[1759665444891,0.61596,4556.5,4556.4,0.7559]
[1759665446389,0.61596,4556.5,4556.4,0.5493]
[1759665446589,3.60275,4556.7,4556.6,0.5493]
[1759665446796,3.82375,4556.7,4556.6,0.331]
[1759665446996,6.70513219,4556.7,4556.6,0.331]
[1759665447296,6.48413219,4556.7,4556.6,0.331]
[1759665447494,6.70513219,4556.7,4556.6,0.331]
[1759665448196,6.48413219,4556.7,4556.6,0.331]
[1759665448396,6.70513219,4556.7,4556.6,0.331]
[1759665448597,6.70513219,4556.7,4556.6,0.5493]
[1759665449396,6.48413219,4556.7,4556.6,0.331]
[1759665449600,6.70513219,4556.7,4556.6,0.331]
[1759665450193,6.70513219,4556.7,4556.5,0.4535]
[1759665450402,6.70513219,4556.7,4556.6,0.331]
[1759665453693,7.17286192,4556.7,4556.6,0.331]
[1759665456398,6.95186192,4556.7,4556.6,0.331]
[1759665456599,7.17286192,4556.7,4556.6,0.331]
[1759665459000,7.17286192,4556.7,4556.5,0.1225]
[1759665459001,0.39495,4556.6,4556.5,0.1225]
[1759665459199,0.39495,4556.6,4556.5,0.4516]
[1759665459200,0.86267973,4556.6,4556.5,0.4516]
[1759665459398,3.34280875,4556.6,4556.5,0.84656]
[1759665460303,3.34280875,4556.6,4556.5,1.06326]
[1759665460507,3.34280875,4556.6,4556.5,1.27786]
[1759665460803,3.56380875,4556.6,4556.5,1.27786]
[1759665461697,3.73775875,4556.6,4556.5,1.27786]
[1759665461999,3.95875875,4556.6,4556.5,0.8829]
[1759665462302,3.56380875,4556.6,4556.5,1.27786]
[1759665462801,3.34280875,4556.6,4556.5,1.27786]
[1759665463004,3.95875875,4556.6,4556.5,0.6683]
[1759665463405,3.95875875,4556.6,4556.5,0.4516]
[1759665465504,3.95875875,4556.6,4556.5,0.84656]